lending/lending_fUSD_20240824
["ID","MTS","AMOUNT","RATE_DAILY","PERIOD"]
[335824250,1724514641279,-500.0,0.00010999,2]
[335824251,1724514641288,-500.0,0.00010999,2]
[335824252,1724514641297,-186.36,0.00010999,2]
[335824253,1724514641306,-500.0,0.00010999,2]
[335824254,1724514641317,-500.0,0.00010999,2]
[335824255,1724514641326,-500.0,0.00010999,2]
[335824256,1724514641336,-500.0,0.00010999,2]
[335824257,1724514641347,-500.0,0.00010999,2]
[335824258,1724514641357,-500.0,0.00010999,2]
[335824259,1724514641366,-500.0,0.00010999,2]
[335824260,1724514641375,-500.0,0.00010999,2]
[335824261,1724514641384,-500.0,0.00010999,2]
[335824262,1724514641393,-500.0,0.00010999,2]
[335824263,1724514641402,-500.0,0.00010999,2]
[335824264,1724514641413,-500.0,0.00010999,2]
[335824265,1724514641424,-192.43,0.00010999,2]
[335824266,1724514641433,-549.38,0.00010999,2]
[335824267,1724514641442,-549.38,0.00010999,2]
[335824268,1724514641452,-549.38,0.00010999,2]
[335824270,1724514641461,-549.38,0.00010999,2]
[335824272,1724514641474,-549.38,0.00010999,2]
[335824274,1724514641484,-549.38,0.00010999,2]
[335824276,1724514641494,-549.38,0.00010999,2]
[335824278,1724514641503,-549.38,0.00010999,2]
[335824280,1724514641515,-4402.7,0.00010999,2]
[335824282,1724514641525,-549.38,0.00010999,2]
[335824284,1724514641535,-4402.7,0.00010999,2]
[335824286,1724514641545,-549.38,0.00010999,2]
[335824288,1724514641555,-4402.7,0.00010999,2]
[335824290,1724514641565,-549.38,0.00010999,2]
[335824292,1724514641574,-549.38,0.00010999,2]
[335824294,1724514641585,-4402.7,0.00010999,2]
[335824296,1724514641595,-549.38,0.00010999,2]
[335824298,1724514641603,-4402.7,0.00010999,2]
[335824300,1724514641612,-549.38,0.00010999,2]
[335824302,1724514641621,-4402.7,0.00010999,2]
[335824304,1724514641632,-549.38,0.00010999,2]
[335824306,1724514641642,-4402.7,0.00010999,2]
[335824308,1724514641651,-549.38,0.00010999,2]
[335824310,1724514641660,-4402.7,0.00010999,2]
[335824312,1724514641669,-549.38,0.00010999,2]
[335824314,1724514641678,-4402.7,0.00010999,2]
[335824316,1724514641687,-549.38,0.00010999,2]
[335824318,1724514641697,-4402.7,0.00010999,2]
[335824320,1724514641706,-549.6,0.00010999,2]
[335824322,1724514641716,-4402.7,0.00010999,2]
[335824324,1724514641725,-4402.7,0.00010999,2]
[335824326,1724514641734,-4402.7,0.00010999,2]
[335824327,1724514641743,-4402.7,0.00010999,2]
[335824329,1724514641752,-4402.7,0.00010999,2]
[335824331,1724514641761,-4402.7,0.00010999,2]
[335824333,1724514641770,-4402.7,0.00010999,2]
[335824335,1724514641779,-4402.7,0.00010999,2]
[335824337,1724514641789,-4402.72329405,0.00010999,2]
[335824339,1724514641798,-500.0,0.00010999,2]
[335824341,1724514641807,-500.0,0.00010999,2]
[335824343,1724514641816,-500.0,0.00010999,2]
[335824345,1724514641825,-595.59979759,0.00010999,2]
[335824347,1724514641833,-500.0,0.00010999,2]
[335824348,1724514641842,-500.0,0.00010999,2]
[335824350,1724514641852,-500.0,0.00010999,2]
[335824352,1724514641861,-500.0,0.00010999,2]
[335824354,1724514641870,-251.8,0.00010999,2]
[335824356,1724514641879,-710.47,0.00010999,2]
[335824358,1724514641888,-710.47,0.00010999,2]
[335824360,1724514641897,-710.47,0.00010999,2]
[335824362,1724514641906,-710.47,0.00010999,2]
[335824364,1724514641915,-710.47,0.00010999,2]
[335824366,1724514641924,-710.47,0.00010999,2]
[335824368,1724514641933,-710.47,0.00010999,2]
[335824370,1724514641943,-710.47,0.00010999,2]
[335824372,1724514641952,-710.47,0.00010999,2]
[335824374,1724514641961,-393.92,0.00010999,2]
[335824376,1724514641970,-710.47,0.00010999,2]
[335824378,1724514641979,-710.47,0.00010999,2]
[335824380,1724514641988,-710.47,0.00010999,2]
[335824382,1724514641997,-710.47,0.00010999,2]
[335824384,1724514642006,-710.47,0.00010999,2]
[335824386,1724514642015,-710.47,0.00010999,2]
[335824388,1724514642024,-710.47,0.00010999,2]
[335824390,1724514642034,-710.47,0.00010999,2]
[335824392,1724514642043,-710.47,0.00010999,2]
[335824394,1724514642052,-710.65,0.00010999,2]
[335824396,1724514642062,-500.0,0.00010999,2]
[335824398,1724514642071,-500.0,0.00010999,2]
[335824400,1724514642080,-500.0,0.00010999,2]
[335824402,1724514642090,-500.0,0.00010999,2]
[335824404,1724514642099,-500.0,0.00010999,2]
[335824406,1724514642108,-500.0,0.00010999,2]
[335824408,1724514642117,-500.0,0.00010999,2]
[335824410,1724514642126,-500.0,0.00010999,2]
[335824412,1724514642135,-500.0,0.00010999,2]
[335824414,1724514642144,-500.0,0.00010999,2]
[335824415,1724514642153,-473.39696943,0.00010999,2]
[335824417,1724514642162,-500.0,0.00010999,2]
[335824419,1724514642172,-500.0,0.00010999,2]
[335824421,1724514642181,-500.0,0.00010999,2]
[335824423,1724514642190,-500.0,0.00010999,2]
[335824425,1724514642199,-500.0,0.00010999,2]
[335824427,1724514642208,-500.0,0.00010999,2]
[335824429,1724514642218,-405.02,0.00010999,2]
[335824431,1724514642227,-500.0,0.00010999,2]
[335824433,1724514642235,-500.0,0.00010999,2]
[335824435,1724514642245,-500.0,0.00010999,2]
[335824437,1724514642254,-548.41595123,0.00010999,2]
[335824439,1724514642263,-500.0,0.00010999,2]
[335824441,1724514642272,-500.0,0.00010999,2]
[335824443,1724514642282,-500.0,0.00010999,2]
[335824444,1724514642291,-353.6077421,0.00010999,2]
[335824446,1724514642300,-500.0,0.00010999,2]
[335824448,1724514642310,-500.0,0.00010999,2]
[335824450,1724514642319,-500.0,0.00010999,2]
[335824452,1724514642328,-500.0,0.00010999,2]
[335824454,1724514642337,-500.0,0.00010999,2]
[335824456,1724514642345,-500.0,0.00010999,2]
[335824458,1724514642354,-500.0,0.00010999,2]
[335824460,1724514642363,-371044.5794695,0.00011,4]
[335824476,1724514642508,-45063.46960216,0.00011,4]
[335824478,1724514642520,-289.3455407,0.00011,4]
[335824481,1724514642545,-500.0,0.00010999,2]
[335824483,1724514642554,-4273.11977575,0.00011,4]
[335824485,1724514642565,-8062.67469657,0.00011,4]
[335824530,1724514642913,-357.4813523,0.00010949,2]
[335824532,1724514642923,-486.0999,0.00010958,2]
[335824534,1724514642933,-500.0,0.00010999,2]
[335824536,1724514642942,-500.0,0.00010999,2]
[335824538,1724514642951,-500.0,0.00010999,2]
[335824540,1724514642960,-500.0,0.00010999,2]
[335824542,1724514642969,-500.0,0.00010999,2]
[335824544,1724514642978,-500.0,0.00010999,2]
[335824546,1724514642987,-500.0,0.00010999,2]
[335824548,1724514642996,-579.23,0.00010999,2]
[335824550,1724514643006,-6573.55350622,0.00011,2]
[335824552,1724514643020,-642.5,0.00011,2]
[335824554,1724514643031,-79287.39464,0.00011,2]
[335824557,1724514643048,-9921.28062816,0.00011,2]
[335824560,1724514643062,-8335.21996619,0.00011,2]
[335824562,1724514643073,-1000.0,0.00011,2]
[335824564,1724514643084,-5437.12298373,0.00011,2]
[335824567,1724514643102,-697.95966885,0.00011,2]
[335824570,1724514643121,-1777.0,0.00011,2]
[335824572,1724514643132,-2953.88686576,0.00011,2]
[335824584,1724514643283,-500.0,0.00011,2]
[335824585,1724514643298,-823.72163036,0.00011,2]
[335824586,1724514643699,-50843.95655528,0.00011,2]
[335824587,1724514643708,-37425.69657253,0.00011,4]
[335824588,1724514643724,-1094.57625342,0.00011,4]
[335824589,1724514643735,-840.77658634,0.00011,4]
[335824590,1724514643753,-2662.6206672,0.00011,4]
[335824591,1724514643765,-276.3869938,0.00011,4]
[335824592,1724514643776,-276.49059443,0.00011,4]
[335824593,1724514643792,-637.20858714,0.00011,4]
[335824594,1724514643803,-1027.23639687,0.00011,4]
[335824595,1724514643961,-155.08636607,0.00010713,2]
[335824596,1724514643971,-1989.06106593,0.00010899,2]
[335824597,1724514643986,-3640.15163054,0.00010899,2]
[335824629,1724514645757,-4484.60618732,0.00010899,2]
[335824630,1724514645768,-314.24701514,0.00010899,2]
[335824631,1724514645778,-150.47,0.00010998,2]
[335824632,1724514645788,-688.0,0.00011,2]
[335824633,1724514645797,-1676.74971095,0.00011,4]
[335824634,1724514645979,-549.96057904,0.00011,4]
[335824636,1724514695788,395.56,8.793e-05,2]
[335824637,1724514737130,154.4,8.024e-05,2]
[335824638,1724514888156,239.88,9.994e-05,2]
[335824639,1724514923095,913.28833286,9.726e-05,2]
[335824640,1724514923115,10000.0,9.726e-05,2]
[335824641,1724514923136,1572.59758189,9.726e-05,2]
[335824642,1724514923193,1152.74082596,9.726e-05,2]
[335824643,1724514926162,693.15255897,9.726e-05,2]
[335824644,1724514937545,3637.29541211,9.726e-05,2]
[335824645,1724514945731,377.35855902,9.726e-05,2]
[335824646,1724515085686,371.22787731,0.00010009,2]
[335824647,1724515123547,2195.62718474,0.00010009,2]
[335824648,1724515123567,7189.19426945,0.00010009,2]
[335824649,1724515168896,500.0,0.00010009,2]
[335824650,1724515197430,420.51,8.432e-05,2]
[335824651,1724515202974,150.0,0.00010009,2]
[335824652,1724515203452,150.0,0.00010009,2]
[335824653,1724515203725,150.0,0.00010009,2]
[335824654,1724515203877,150.0,0.00010009,2]
[335824655,1724515204090,150.0,0.00010009,2]
[335824656,1724515204352,150.0,0.00010009,2]
[335824657,1724515204561,150.0,0.00010009,2]
[335824658,1724515204770,150.0,0.00010009,2]
[335824659,1724515205253,150.0,0.00010009,2]
[335824660,1724515205784,150.0,0.00010009,2]
[335824661,1724515206006,150.0,0.00010009,2]
[335824662,1724515206197,150.0,0.00010009,2]
[335824663,1724515206627,90.29573055,0.00010009,2]
[335824664,1724515206650,59.70426945,0.00010009,2]
[335824665,1724515206805,150.0,0.00010009,2]
[335824666,1724515207006,150.0,0.00010009,2]
[335824667,1724515207455,150.0,0.00010009,2]
[335824668,1724515209395,150.0,0.00010009,2]
[335824669,1724515209600,150.0,0.00010009,2]
[335824670,1724515209707,3070.64956102,0.00010009,2]
[335824671,1724515209823,150.0,0.00010009,2]
[335824672,1724515210019,202.39268906,0.00010009,2]
[335824673,1724515215403,154.4,7.615e-05,2]
[335824674,1724515231615,150.0,0.00026773,120]
[335824676,1724515411291,150.0,0.000266,120]
[335824678,1724515469287,5612.85348047,0.00010009,2]
[335824679,1724515469309,9886.74398254,0.00010009,2]
[335824681,1724515516128,113.25601746,9.978e-05,2]
[335824682,1724515516149,195.88398254,9.978e-05,2]
[335824683,1724515558581,4321.66459626,9.978e-05,2]
[335824686,1724515573778,1271.90754797,9.978e-05,2]
[335824687,1724515580313,500.0,9.978e-05,2]
[335824688,1724515580676,500.0,9.978e-05,2]
[335824689,1724515581015,500.0,9.978e-05,2]
[335824690,1724515581354,500.0,9.978e-05,2]
[335824691,1724515581982,500.0,9.978e-05,2]
[335824692,1724515582306,500.0,9.978e-05,2]
[335824693,1724515590761,150.0,0.00023987,120]
[335824694,1724515606467,434.60721071,9.978e-05,2]
[335824705,1724515665968,160.46,9.906e-05,2]
[335824706,1724515705258,188.25,9.881e-05,2]
[335824718,1724515711275,427.22666252,9.916e-05,2]
[335824719,1724515711296,9572.77333748,9.916e-05,2]
[335824721,1724515741547,-442.56,0.00010109,2]
[335824722,1724515741570,-250.0,0.00010192,2]
[335824723,1724515741591,-1497.0,0.00010246,2]
[335824724,1724515741613,-12307.8782,0.00010271,2]
[335824725,1724515741833,-213.87,0.00010349,2]
[335824726,1724515741867,-557.44,0.00010371,2]
[335824727,1724515741890,-155.0,0.00010505,2]
[335824728,1724515741912,-2582.8163,0.0001068,2]
[335824729,1724515741933,-500.0,0.0001068,2]
[335824730,1724515741956,-499.99,0.0001068,2]
[335824731,1724515741979,-420.51,0.00010695,2]
[335824732,1724515742000,-790.9,0.000107,2]
[335824733,1724515742021,-790.9,0.000107,2]
[335824734,1724515742042,-186.65,0.000107,2]
[335824735,1724515742063,-307.97022936,0.000108,2]
[335824736,1724515742083,-3416.0425,0.000108,2]
[335824737,1724515742105,-1000.0,0.000108,2]
[335824738,1724515742125,-617.2331,0.000108,2]
[335824739,1724515742147,-155.0,0.00010862,2]
[335824740,1724515742167,-500.0,0.00010873,2]
[335824741,1724515742188,-255.3689167,0.00010888,2]
[335824742,1724515742209,-413.55455394,0.00010888,2]
[335824743,1724515746295,-300.0,0.0001027,2]
[335824744,1724515746317,-77.65483193,0.00010888,2]
[335824745,1724515746340,-2612.95734,0.0001089,2]
[335824746,1724515746363,-11285.94936048,0.00010899,2]
[335824747,1724515746385,-5723.43846759,0.00010899,2]
[335824748,1724515746948,-5562.51089289,0.00010899,2]
[335824749,1724515746970,-11285.94936048,0.00010899,2]
[335824750,1724515746994,-3151.53974663,0.00010899,2]
[335824751,1724515757915,407.64,8.545e-05,2]
[335824752,1724515758528,-407.64,0.00010809,2]
[335824753,1724515758551,-166.39780491,0.0001089,2]
[335824754,1724515758572,-330.46251231,0.0001089,2]
[335824755,1724515758595,-8134.40961385,0.00010899,2]
[335824756,1724515758618,-11285.94936048,0.00010899,2]
[335824757,1724515758642,-4675.14070845,0.00010899,2]
[335824758,1724515766487,-25000.0,0.000108,2]
[335824759,1724515770786,150.0,0.00026492,120]
[335824760,1724515781730,-265.66856408,0.00010357,2]
[335824761,1724515781752,-15239.03333064,0.000108,2]
[335824762,1724515781774,-253.22695752,0.0001089,2]
[335824763,1724515781795,-2015.16229155,0.00010899,2]
[335824764,1724515781817,-328.33768382,0.00010899,2]
[335824765,1724515781842,-393.8276946,0.00010899,2]
[335824766,1724515781863,-298.82691546,0.00010899,2]
[335824767,1724515781887,-314.24701514,0.00010899,2]
[335824768,1724515790904,155.0,0.00010357,2]
[335824770,1724515815511,542.51258823,0.00010357,2]
[335824771,1724515819215,5194.15695896,0.000108,2]
[335824772,1724515819237,25000.0,0.000108,2]
[335824773,1724515819259,21657.38534104,0.000108,2]
[335824774,1724515819891,645.95,0.00010737,2]
[335824775,1724515830727,150.0,0.00026898,120]
[335824776,1724515831991,-2299.422,0.000109,2]
[335824777,1724515832000,-19472.0523,0.000109,2]
[335824778,1724515832010,-11853.3953,0.000109,2]
[335824779,1724515832020,-1000.0,0.000109,2]
[335824780,1724515832030,-12324.9355398,0.000109,2]
[335824781,1724515832040,-7500.0,0.000109,2]
[335824782,1724515832050,-8312.0149982,0.000109,2]
[335824793,1724515834898,500.0,0.00010357,2]
[335824794,1724515837384,413.4282629,0.00010357,2]
[335824799,1724515838159,-431.02061693,0.000109,2]
[335824800,1724515838172,-869.96684025,0.000109,2]
[335824801,1724515838214,-46816.74434702,0.000109,2]
[335824802,1724515838223,-623.0,0.000109,2]
[335824803,1724515838233,-1923.0,0.000109,2]
[335824804,1724515838242,-1544.0,0.000109,2]
[335824805,1724515838251,-1258.0,0.000109,2]
[335824806,1724515838261,-647.223,0.000109,2]
[335824807,1724515838270,-507.198,0.000109,2]
[335824808,1724515838279,-513.0870719,0.000109,2]
[335824809,1724515838291,-304.9129281,0.000109,2]
[335824810,1724515838300,-165.845,0.000109,2]
[335824811,1724515838309,-125.19673021,0.000109,2]
[335824813,1724515838325,-1012.80326979,0.000109,2]
[335824815,1724515838334,-207.441,0.000109,2]
[335824816,1724515838343,-261.64956537,0.000109,2]
[335824819,1724515838359,-1635.35043463,0.000109,2]
[335824821,1724515838368,-272.285,0.000109,2]
[335824823,1724515838377,-179.57759866,0.000109,2]
[335824856,1724515838712,162.67323732,0.00010357,2]
[335824882,1724515838984,250.0,0.00010841,2]
[335825017,1724515841396,299.48457617,0.00010357,2]
[335825075,1724515841957,170.6347928,0.00010357,2]
[335825170,1724515842883,182.01298739,0.00010357,2]
[335825223,1724515843433,-378.92940134,0.000109,2]
[335825224,1724515843442,-248.604,0.000109,2]
[335825226,1724515843451,-1182.0,0.000109,2]
[335825228,1724515843459,-3320.0,0.000109,2]
[335825230,1724515843469,-764.0,0.000109,2]
[335825232,1724515843478,-500.0,0.00010958,2]
[335825234,1724515843487,-171.34,0.00010958,2]
[335825236,1724515843496,-500.0,0.00010958,2]
[335825238,1724515843506,-614.35,0.00010958,2]
[335825240,1724515843515,-500.0,0.00010958,2]
[335825242,1724515843524,-500.0,0.00010958,2]
[335825243,1724515843534,-500.0,0.00010958,2]
[335825244,1724515843544,-500.0,0.00010958,2]
[335825245,1724515843553,-256.22,0.00010958,2]
[335825246,1724515843563,-500.0,0.00010958,2]
[335825247,1724515843572,-539.36,0.00010958,2]
[335825248,1724515843581,-576.37,0.00010958,2]
[335825249,1724515843592,-500.0,0.00010958,2]
[335825250,1724515843602,-500.0,0.00010958,2]
[335825251,1724515843611,-500.0,0.00010958,2]
[335825252,1724515843623,-500.0,0.00010958,2]
[335825253,1724515843632,-500.0,0.00010958,2]
[335825254,1724515843642,-500.0,0.00010958,2]
[335825255,1724515843651,-500.0,0.00010958,2]
[335825256,1724515843662,-546.14,0.00010958,2]
[335825257,1724515843673,-500.0,0.00010958,2]
[335825258,1724515843682,-500.0,0.00010958,2]
[335825259,1724515843691,-500.0,0.00010958,2]
[335825260,1724515843700,-500.0,0.00010958,2]
[335825261,1724515843709,-154.97,0.00010959,2]
[335825263,1724515843719,-165.83,0.00010959,2]
[335825265,1724515843729,-250.0,0.00010959,2]
[335825266,1724515843738,-2000.0,0.00010959,2]
[335825268,1724515843748,-289.0,0.00010989,2]
[335825270,1724515843757,-3729.0,0.00010989,2]
[335825272,1724515843766,-5848.0,0.00010989,2]
[335825274,1724515843776,-1674.0,0.00010989,2]
[335825276,1724515843786,-1206.0,0.00010989,2]
[335825278,1724515843795,-10737.84390248,0.00010993,2]
[335825280,1724515843805,-6658.74567236,0.00010997,2]
[335825282,1724515843814,-500.0,0.00010998,2]
[335825283,1724515843824,-370.32506365,0.00010999,2]
[335825285,1724515843833,-500.0,0.00010999,2]
[335825287,1724515843843,-500.0,0.00010999,2]
[335825289,1724515843855,-500.0,0.00010999,2]
[335825291,1724515843865,-348.3407327,0.00010999,2]
[335825293,1724515843875,-500.0,0.00010999,2]
[335825295,1724515843884,-500.0,0.00010999,2]
[335825297,1724515843895,-500.0,0.00010999,2]
[335825299,1724515843904,-500.0,0.00010999,2]
[335825301,1724515843913,-500.0,0.00010999,2]
[335825302,1724515843924,-500.0,0.00010999,2]
[335825305,1724515843936,-500.0,0.00010999,2]
[335825307,1724515843945,-500.0,0.00010999,2]
[335825309,1724515843954,-500.0,0.00010999,2]
[335825311,1724515843964,-500.0,0.00010999,2]
[335825313,1724515843974,-500.0,0.00010999,2]
[335825314,1724515843984,-500.0,0.00010999,2]
[335825317,1724515843994,-500.0,0.00010999,2]
[335825319,1724515844004,-500.0,0.00010999,2]
[335825321,1724515844014,-500.0,0.00010999,2]
[335825323,1724515844023,-500.0,0.00010999,2]
[335825324,1724515844033,-500.0,0.00010999,2]
[335825325,1724515844042,-500.0,0.00010999,2]
[335825327,1724515844052,-500.0,0.00010999,2]
[335825329,1724515844062,-500.0,0.00010999,2]
[335825331,1724515844071,-500.0,0.00010999,2]
[335825333,1724515844080,-500.0,0.00010999,2]
[335825335,1724515844090,-500.0,0.00010999,2]
[335825337,1724515844099,-500.0,0.00010999,2]
[335825340,1724515844110,-500.0,0.00010999,2]
[335825342,1724515844120,-500.0,0.00010999,2]
[335825344,1724515844129,-500.0,0.00010999,2]
[335825345,1724515844138,-500.0,0.00010999,2]
[335825347,1724515844148,-500.0,0.00010999,2]
[335825349,1724515844157,-628.02219249,0.00010999,2]
[335825351,1724515844166,-297.76,0.00010999,2]
[335825353,1724515844177,-500.0,0.00010999,2]
[335825355,1724515844188,-500.0,0.00010999,2]
[335825357,1724515844198,-500.0,0.00010999,2]
[335825359,1724515844208,-500.0,0.00010999,2]
[335825361,1724515844217,-500.0,0.00010999,2]
[335825363,1724515844227,-341.97013338,0.00010999,2]
[335825365,1724515844236,-523.48607601,0.00010999,2]
[335825367,1724515844246,-621.0,0.00011,2]
[335825369,1724515844256,-3854.433847,0.00011,2]
[335825372,1724515844271,-355.38654613,0.00011,2]
[335825381,1724515846022,-619.76020313,0.00011,2]
[335825382,1724515846077,-1728.58052957,0.00011,2]
[335825581,1724515855230,718.43080238,0.000108,2]
[335825582,1724515855252,281.56919762,0.000108,2]
[335825583,1724515861609,300.0,0.00010899,2]
[335825584,1724515871296,7057.3989,0.000108,2]
[335825585,1724515890762,150.0,0.00026891,120]
[335825587,1724515896208,485.15804996,0.00010899,2]
[335825588,1724515912754,500.0,0.000108,2]
[335825589,1724515925486,150.0,0.00010899,2]
[335825590,1724515944129,299.48457617,0.00010899,2]
[335825591,1724515950792,150.0,0.00026418,120]
[335825593,1724515954751,1050.0,0.0001,2]
[335825594,1724515995636,727.0,0.0001089,2]
[335825595,1724515998586,3153.38927625,0.00010896,2]
[335825596,1724516010771,150.0,0.00026305,120]
[335825598,1724516023648,19.58666252,0.0001,2]
[335825599,1724516023668,347.57875826,0.0001,2]
[335825601,1724516250761,150.0,0.00024587,120]
[335825602,1724516310891,150.0,0.00024801,120]
[335825603,1724516367299,2418.1284533,0.00027,120]
[335825604,1724516370743,150.0,0.00025098,120]
[335825605,1724516393956,412.31,8.219e-05,2]
[335825606,1724516417006,1000.0,0.00025,120]
[335825607,1724516430767,150.0,0.00026206,120]
[335825609,1724516501072,1148.36,0.0001,2]
[335825611,1724516519585,5620.54,9.977e-05,2]
[335825614,1724516550786,150.0,0.0002623,120]
[335825615,1724516610781,150.0,0.00026474,120]
[335825616,1724516667041,531.7934097,9.924e-05,2]
[335825617,1724516672252,531.79340969,9.979e-05,2]
[335825621,1724516782460,177.26446991,9.924e-05,2]
[335825622,1724516787524,177.26446989,9.979e-05,2]
[335825633,1724516850868,150.0,0.00025328,120]
[335825636,1724516894437,6189.72288471,0.00027,120]
[335825637,1724516910751,150.0,0.00024537,120]
[335825638,1724516911502,453.27490746,0.00010009,2]
[335825639,1724516916672,516.76,9.954e-05,2]
[335825640,1724516919290,83.06057509,8.219e-05,2]
[335825641,1724516919312,308.62942491,8.219e-05,2]
[335825661,1724517016633,440.88857809,9.962e-05,2]
[335825662,1724517022097,9250.481997,9.96e-05,2]
[335825663,1724517022119,759.518003,9.96e-05,2]
[335825664,1724517030751,150.0,0.00026045,120]
[335825669,1724517034303,250.0,9.956e-05,2]
[335825673,1724517035272,-154.57,0.00010013,2]
[335825674,1724517035282,-329.99434207,0.00010097,2]
[335825675,1724517035292,-483.24,0.00010133,2]
[335825676,1724517035303,-153.6,0.00010404,2]
[335825677,1724517035313,-391.69,0.00010473,2]
[335825678,1724517035322,-298.82691546,0.00010566,2]
[335825679,1724517035332,-339.35222872,0.00010713,2]
[335825680,1724517035343,-256.92942599,0.000108,2]
[335825681,1724517035353,-424.35498596,0.0001085,2]
[335825682,1724517035382,-2899.27121404,0.0001085,2]
[335825683,1724517035392,-900.72878596,0.0001088,2]
[335825684,1724517035404,-490.46366303,0.0001088,2]
[335825685,1724517035416,-697.89036063,0.0001088,2]
[335825686,1724517035427,-878.30190677,0.0001088,2]
[335825687,1724517035439,-3172.38668386,0.0001088,2]
[335825688,1724517035452,-597.34227907,0.0001088,2]
[335825689,1724517035474,-344.38698503,0.0001088,2]
[335825690,1724517035483,-106.06237538,0.0001089,2]
[335825691,1724517035495,-2071.40207462,0.0001089,2]
[335825692,1724517035504,-297.57530605,0.0001089,2]
[335825693,1724517035514,-1206.0,0.00010896,2]
[335825694,1724517035523,-1674.0,0.00010896,2]
[335825695,1724517035533,-340.61511463,0.00010896,2]
[335825696,1724517035542,-893.34406359,0.000109,2]
[335825697,1724517035553,-29701.30863641,0.000109,2]
[335825698,1724517035563,-7593.7249,0.000109,2]
[335825699,1724517035572,-978.84684166,0.000109,2]
[335825700,1724517035582,-1258.20462876,0.00010949,2]
[335825701,1724517035591,-314.24701514,0.00010949,2]
[335825702,1724517035601,-9260.31767549,0.0001095,2]
[335825703,1724517035612,-721.88148423,0.0001095,2]
[335825704,1724517035624,-881.42115809,0.0001095,2]
[335825705,1724517035635,-7552.13156681,0.0001095,2]
[335825707,1724517035647,-10353.07846241,0.0001095,2]
[335825724,1724517035939,-796.80268474,0.0001095,2]
[335825728,1724517038446,-220434.36696823,0.0001095,2]
[335825729,1724517038456,-500.0,0.00010958,2]
[335825730,1724517038471,-628.69580138,0.00010958,2]
[335825731,1724517038482,-500.0,0.00010958,2]
[335825732,1724517038492,-500.0,0.00010958,2]
[335825733,1724517038502,-500.0,0.00010958,2]
[335825734,1724517038512,-500.0,0.00010958,2]
[335825735,1724517038522,-500.0,0.00010958,2]
[335825736,1724517038532,-544.53,0.00010958,2]
[335825737,1724517038541,-500.0,0.00010958,2]
[335825738,1724517038551,-500.0,0.00010958,2]
[335825739,1724517038561,-500.0,0.00010958,2]
[335825741,1724517038570,-500.0,0.00010958,2]
[335825743,1724517038580,-2356.52,0.00010958,2]
[335825745,1724517038590,-500.0,0.00010958,2]
[335825747,1724517038600,-500.0,0.00010958,2]
[335825749,1724517038610,-500.0,0.00010958,2]
[335825751,1724517038620,-500.0,0.00010958,2]
[335825753,1724517038630,-2623.37,0.00010958,2]
[335825755,1724517038640,-500.0,0.00010958,2]
[335825757,1724517038650,-500.0,0.00010958,2]
[335825759,1724517038660,-500.0,0.00010958,2]
[335825761,1724517038670,-500.0,0.00010958,2]
[335825763,1724517038679,-551.6,0.00010958,2]
[335825766,1724517038689,-500.0,0.00010958,2]
[335825768,1724517038698,-500.0,0.00010958,2]